bitfinex-derivatives/quotes_SOLF0:USTF0_20220106
["timestamp","ask_amount","ask_price","bid_price","bid_amount"]
[1641478496171,17.58319255,148.82,148.79,4.0]
[1641478496573,17.58319255,148.82,148.78,1.423338]
[1641478497975,17.58319255,148.82,148.77,1.423338]
[1641478498176,17.58319255,148.82,148.77,5.423338]
[1641478498776,17.58319255,148.82,148.78,1.423338]
[1641478499577,17.58319255,148.82,148.79,4.0]
[1641478499977,17.58319255,148.82,148.78,5.423338]
[1641478500278,14.25396351,148.82,148.78,4.0]
[1641478500479,14.25396351,148.82,148.74,122.20618]
[1641478500480,27.66479,148.83,148.79,4.0]
[1641478500881,27.66479,148.83,148.77,31.66479]
[1641478501080,27.66479,148.83,148.77,27.66479]
[1641478501282,27.66479,148.83,148.74,94.54139]
[1641478501483,27.66479,148.83,148.74,98.54139]
[1641478501883,27.66479,148.83,148.75,4.0]
[1641478502283,3.30732684,148.82,148.75,4.0]
[1641478502785,3.30732684,148.82,148.74,98.54139]
[1641478502986,14.25396351,148.8,148.76,1.42335019]
[1641478504288,14.25396351,148.8,148.76,5.42335019]
[1641478504488,14.25396351,148.8,148.76,4.0]
[1641478504891,14.25396351,148.8,148.77,27.66479]
[1641478505195,14.25396351,148.81,148.77,29.08814019]
[1641478506094,14.25396351,148.81,148.78,1.42335019]
[1641478507700,3.10653164,148.82,148.8,4.0]
[1641478507898,3.10653164,148.82,148.81,4.0]
[1641478508097,38.02281658,148.85,148.81,4.0]
[1641478508297,38.02281658,148.85,148.82,4.0]
[1641478508497,38.02281658,148.85,148.83,4.0]
[1641478508697,38.02281658,148.85,148.82,4.0]
[1641478508897,38.02281658,148.85,148.83,27.66479]
[1641478509300,38.02281658,148.89,148.83,27.66479]
[1641478510199,38.02281658,148.89,148.79,4.0]
[1641478510602,102.03391658,148.91,148.79,4.0]
[1641478510801,102.03391658,148.91,148.8,4.0]
[1641478511004,27.66479,148.89,148.8,4.0]
[1641478511501,27.66479,148.89,148.8,70.9606]
[1641478511701,65.68760658,148.89,148.8,70.9606]
[1641478512702,65.68760658,148.89,148.8,66.9606]
[1641478514204,38.02281658,148.88,148.8,66.9606]
[1641478514705,38.02281658,148.88,148.8,70.9606]
[1641478515005,38.02281658,148.88,148.8,66.9606]
[1641478515208,38.02281658,148.88,148.8,70.9606]
[1641478515805,27.66479,148.89,148.8,70.9606]
[1641478516207,27.66479,148.89,148.8,66.9606]
[1641478517409,27.66479,148.89,148.8,70.9606]
[1641478519012,27.66479,148.89,148.8,66.9606]
[1641478521817,27.66479,148.89,148.8,59.36263812]
[1641478522217,102.03391658,148.91,148.8,59.36263812]
[1641478522218,64.0111,148.91,148.8,59.36263812]
[1641478524016,102.03391658,148.91,148.8,59.36263812]
[1641478524617,102.03391658,148.91,148.8,63.36263812]
[1641478525017,27.66479,148.9,148.8,63.36263812]
[1641478525417,27.66479,148.9,148.8,59.36263812]
[1641478525618,6.71388768,148.88,148.8,59.36263812]
[1641478528019,4.73250008,148.84,148.8,59.36263812]
[1641478528319,4.73250008,148.84,148.79,32.39729008]
[1641478529321,4.73250008,148.84,148.79,4.73250008]
[1641478530923,4.73250008,148.81,148.8,4.73250008]
[1641478533125,4.73250008,148.81,148.76,4.0]
[1641478533425,4.73250008,148.81,148.77,27.66479]
[1641478534526,4.73250008,148.81,148.77,31.66479]
[1641478534927,4.73250008,148.81,148.77,27.66479]
[1641478535129,4.73250008,148.81,148.77,31.66479]
[1641478536229,4.73250008,148.81,148.78,6.96846182]
[1641478536528,4.73250008,148.81,148.78,10.96846182]
[1641478537032,4.73250008,148.81,148.78,6.96846182]
[1641478538334,4.73250008,148.83,148.8,14.24344548]
[1641478540138,4.73250008,148.83,148.79,14.24344548]
[1641478540742,4.73250008,148.83,148.82,4.7479755]
[1641478543246,14.24344548,148.86,148.82,4.7479755]
[1641478543445,14.24344548,148.83,148.8,4.7479755]
[1641478544344,4.73745124,148.81,148.78,4.7479755]
[1641478545345,41.90823548,148.85,148.79,4.7479755]
[1641478545346,4.73745124,148.8,148.79,4.7479755]
[1641478546347,4.73745124,148.8,148.77,67.5432]
[1641478546548,4.73745124,148.8,148.76,14.24344548]
[1641478547152,4.73745124,148.8,148.79,4.74883483]
[1641478547954,4.73745124,148.8,148.76,22.63797317]
[1641478549154,5.124e-05,148.8,148.78,4.0]
[1641478549354,14.24344548,148.83,148.78,4.0]
[1641478549754,14.24344548,148.84,148.81,27.66479]
[1641478549956,14.24344548,148.84,148.81,31.66479]
[1641478550155,14.24344548,148.84,148.81,27.66479]
[1641478550861,17.56455005,148.88,148.82,1.42600681]
[1641478553660,3.32110457,148.88,148.82,22.63774804]
[1641478554058,3.32110457,148.88,148.84,27.66479]
[1641478555459,14.24344548,148.89,148.85,1.42600681]
[1641478555659,14.24344548,148.88,148.85,1.42600681]
[1641478556361,14.24344548,148.88,148.84,27.66479]
[1641478556760,14.24344548,148.88,148.81,41.90823548]
[1641478558162,50.04338124,148.91,148.82,1.42652992]
[1641478558163,14.24344548,148.87,148.82,1.42652992]
[1641478563269,14.24344548,148.88,148.82,1.42652992]
[1641478564871,14.24344548,148.87,148.82,1.42652992]
[1641478566272,14.24344548,148.88,148.82,1.42652992]
[1641478572782,14.24344548,148.88,148.84,27.66479]
[1641478574385,17.56455005,148.9,148.85,1.42667966]
[1641478575287,3.32110457,148.9,148.85,1.42667966]
[1641478576591,3.32110457,148.9,148.86,4.0]
[1641478577093,17.56455005,148.91,148.88,27.66479]
[1641478577994,3.32110457,148.91,148.89,1.42667966]
[1641478578893,17.56455005,148.93,148.89,1.42667966]
[1641478579793,17.56455005,148.93,148.86,14.24344548]
[1641478579994,17.56455005,148.93,148.84,92.04919]
[1641478579995,14.24344548,148.92,148.85,14.24344548]
[1641478580998,17.56455005,148.93,148.87,27.66479]
[1641478581995,17.56455005,148.93,148.88,1.42702374]
[1641478582797,17.56455005,148.93,148.87,27.66479]
[1641478583199,17.56455005,148.93,148.86,14.24344548]
[1641478583600,21.56455005,148.93,148.86,14.24344548]
[1641478584001,14.24344548,148.92,148.88,1.42700641]
[1641478584400,18.24344548,148.92,148.85,14.24344548]
[1641478584602,14.24344548,148.92,148.85,14.24344548]
[1641478585002,16.01203748,148.93,148.85,14.24344548]
[1641478585202,14.23943415,148.89,148.83,62.737]
[1641478585404,14.23943415,148.89,148.82,14.24344548]
[1641478585602,18.23943415,148.89,148.82,14.24344548]
[1641478585806,14.23943415,148.89,148.82,14.24344548]
[1641478586304,6.71298627,148.9,148.8,21.21225128]
[1641478586305,14.23943415,148.87,148.8,21.21225128]
[1641478587205,41.90422415,148.87,148.8,21.21225128]
[1641478587407,68.1184,148.89,148.8,21.21225128]
[1641478587605,14.24193291,148.86,148.79,14.24344548]
[1641478587805,14.24193291,148.86,148.79,79.55884548]
[1641478588507,14.24193291,148.87,148.8,21.21225128]
[1641478589509,12.01203748,148.88,148.8,21.21225128]
[1641478590209,14.24045299,148.87,148.8,21.21225128]
[1641478590808,14.24045299,148.87,148.8,25.21225128]
[1641478591011,12.01203748,148.88,148.8,21.21225128]
[1641478591212,12.01203748,148.88,148.81,27.66479]
[1641478591813,14.23982743,148.88,148.81,41.90823548]
[1641478593712,110.02301743,148.89,148.82,21.21219029]
[1641478595313,137.68780743,148.89,148.82,21.21219029]
[1641478595513,4.0,148.88,148.82,21.21219029]
[1641478595714,14.23982743,148.86,148.79,14.24344548]
[1641478596714,6.71478932,148.86,148.79,14.24344548]
[1641478597015,6.71478932,148.86,148.77,14.24344548]
[1641478597214,27.66479,148.84,148.77,14.24344548]
[1641478597414,34.38070672,148.84,148.77,14.24344548]
[1641478597616,27.66479,148.84,148.77,14.24344548]
[1641478598114,27.66479,148.84,148.75,27.66479]
[1641478598115,41.86951233,148.84,148.75,27.66479]
[1641478599014,14.20472233,148.84,148.75,27.66479]
[1641478599215,20.91996257,148.85,148.75,27.66479]
[1641478599815,14.20472233,148.85,148.75,27.66479]
[1641478600216,14.20472233,148.86,148.76,21.19390438]
[1641478601214,14.20472233,148.85,148.77,66.134]
[1641478602116,27.66479,148.86,148.77,66.134]
[1641478603016,41.86951233,148.86,148.77,66.134]
[1641478603215,48.5845271,148.86,148.77,66.134]
[1641478604316,48.5845271,148.86,148.76,14.24344548]
[1641478604517,14.20472233,148.84,148.77,14.24344548]
[1641478605320,12.02226731,148.85,148.77,14.24344548]
[1641478605918,6.71591672,148.84,148.77,14.24344548]
[1641478606118,20.95951181,148.84,148.77,14.24344548]
[1641478606319,6.71749572,148.8,148.77,14.24344548]
[1641478606520,6.71749572,148.8,148.74,38.02281658]
[1641478606719,10.71749572,148.8,148.74,38.02281658]
[1641478607121,10.71749572,148.8,148.7,38.02281658]
[1641478607319,26.31262001,148.77,148.7,38.02281658]
[1641478608219,26.31262001,148.77,148.68,77.08945856]
[1641478609821,26.31262001,148.77,148.75,4.74964795]
[1641478612020,26.31262001,148.77,148.68,77.08945856]
[1641478612021,26.31262001,148.77,148.74,4.74964795]
[1641478612621,10.71749572,148.8,148.74,4.74964795]
[1641478613026,4.0,148.79,148.74,4.74964795]
[1641478613225,27.66479,148.76,148.74,4.74964795]
[1641478613625,27.66479,148.76,148.67,130.22070658]
[1641478613828,31.66479,148.76,148.67,130.22070658]
[1641478614025,27.66479,148.76,148.67,130.22070658]
[1641478614625,27.66479,148.76,148.67,92.19789]
[1641478614824,27.66479,148.76,148.67,64.5331]
[1641478615225,4.0,148.75,148.67,64.5331]
[1641478615426,59.32958,148.76,148.67,64.5331]
[1641478615627,55.32958,148.76,148.67,64.5331]
[1641478616428,4.0,148.75,148.67,64.5331]
[1641478616628,55.32958,148.76,148.65,65.68760658]
[1641478616827,10.7199785,148.75,148.65,65.68760658]
[1641478617228,6.7199785,148.75,148.65,65.68760658]
[1641478617629,55.32958,148.76,148.65,65.68760658]
[1641478618028,55.32958,148.76,148.65,27.66479]
[1641478618828,55.32958,148.76,148.65,31.66479]
[1641478619031,55.32958,148.76,148.66,38.02281658]
[1641478619231,27.66479,148.73,148.67,64.7074]
[1641478620532,27.66479,148.76,148.67,64.7074]
[1641478621231,27.66479,148.76,148.67,102.73021658]
[1641478622434,27.66479,148.76,148.67,64.7074]
[1641478622633,31.66479,148.76,148.67,64.7074]
[1641478623034,27.66479,148.76,148.67,64.7074]
[1641478623234,31.66479,148.76,148.67,64.7074]
[1641478623635,27.66479,148.76,148.67,64.7074]
[1641478626336,3.32616908,148.75,148.68,1.42418295]
[1641478626936,3.32616908,148.75,148.68,8.38889683]
[1641478628740,3.32616908,148.75,148.68,12.38889683]
[1641478628938,3.32616908,148.76,148.68,61.80920346]
[1641478629138,3.32616908,148.76,148.68,57.80920346]
[1641478629338,3.32616908,148.76,148.7,27.66479]
[1641478630740,3.32616908,148.76,148.71,8.38889683]
[1641478630940,3.32616908,148.76,148.71,12.38889683]
[1641478631342,3.32616908,148.76,148.75,27.66479]
[1641478631640,3.32616908,148.78,148.75,27.66479]
[1641478632341,3.32616908,148.78,148.76,1.42418295]
[1641478632541,3.32616908,148.8,148.76,1.42418295]
[1641478632742,3.32616908,148.8,148.76,65.39048295]
[1641478633143,3.32616908,148.8,148.76,1.42418295]
[1641478633344,27.66479,148.77,148.76,1.42418295]
[1641478633544,31.66479,148.77,148.74,38.02281658]
[1641478633743,10.7199785,148.75,148.74,1.658e-05]
[1641478633944,6.7199785,148.75,148.74,1.658e-05]
[1641478634144,10.7199785,148.75,148.74,1.658e-05]
[1641478634545,10.7199785,148.75,148.69,56.75842818]
[1641478634745,10.7199785,148.75,148.66,67.2742]
[1641478634746,4.0,148.74,148.66,67.2742]
[1641478634944,14.04614758,148.75,148.66,67.2742]
[1641478635345,27.66479,148.74,148.66,67.2742]
[1641478635545,31.66479,148.74,148.66,67.2742]
[1641478635745,34.99095908,148.74,148.66,67.2742]
[1641478636346,34.99095908,148.74,148.65,27.66479]
[1641478636845,3.32616908,148.73,148.67,14.25331084]
[1641478637446,14.04705086,148.73,148.67,14.25331084]
[1641478637646,4.0,148.71,148.66,14.25331084]
[1641478638047,24.3003617,148.73,148.66,14.25331084]
[1641478638346,4.0,148.7,148.66,14.25331084]
[1641478638546,4.0,148.69,148.66,14.25331084]
[1641478638746,4.0,148.69,148.65,14.25331084]
[1641478639446,34.99095908,148.7,148.65,14.25331084]
[1641478639647,4.0,148.67,148.64,14.25331084]
[1641478639848,3.32616908,148.68,148.64,14.25331084]
[1641478640649,3.32616908,148.68,148.63,14.25331084]
[1641478641450,3.32616908,148.69,148.64,14.25331084]
[1641478644051,27.66479,148.7,148.64,14.25331084]
[1641478644251,27.66479,148.7,148.65,14.25331084]
[1641478644453,14.25331084,148.72,148.65,14.25331084]
[1641478645252,3.32979122,148.72,148.66,14.25331084]
[1641478645452,7.32979122,148.72,148.66,14.25331084]
[1641478645753,4.0,148.71,148.66,14.25331084]
[1641478645953,18.25331084,148.71,148.64,14.25331084]
[1641478646152,14.25331084,148.71,148.64,14.25331084]
[1641478646755,17.58310206,148.72,148.65,14.25331084]
[1641478646955,21.58310206,148.72,148.65,14.25331084]
[1641478647755,14.25331084,148.7,148.64,14.25331084]
[1641478648657,3.32979122,148.71,148.65,14.25331084]
[1641478649458,3.32979122,148.71,148.62,27.66479]
[1641478649459,3.32979122,148.72,148.66,14.25331084]
[1641478651158,3.32979122,148.73,148.68,14.25331084]
[1641478651561,3.32979122,148.73,148.68,41.91810084]
[1641478652760,3.32979122,148.75,148.69,22.63345731]
[1641478654161,6.72043011,148.74,148.69,22.63345731]
[1641478655162,14.25331084,148.72,148.65,26.63345731]
[1641478655461,14.25331084,148.72,148.68,27.66479]
[1641478656061,3.32979122,148.73,148.68,27.66479]
[1641478657164,14.25331084,148.75,148.69,1.4216701]
[1641478657965,14.25331084,148.74,148.69,1.4216701]
[1641478660470,17.58310206,148.75,148.69,1.4216701]
[1641478662179,14.25331084,148.74,148.69,1.4216701]
[1641478662978,4.0,148.73,148.69,1.4216701]
[1641478663180,4.0,148.71,148.69,1.4216701]
[1641478663581,4.0,148.71,148.67,14.25331084]
[1641478663780,38.38589764,148.72,148.67,14.25331084]
[1641478663980,38.38589764,148.72,148.64,37.99988265]
[1641478664180,38.38589764,148.72,148.63,77.83601084]
[1641478664181,14.25331084,148.7,148.63,77.83601084]
[1641478664582,14.25331084,148.7,148.63,14.25331084]
[1641478664783,18.25331084,148.7,148.63,14.25331084]
[1641478664980,14.25331084,148.7,148.63,14.25331084]
[1641478665580,18.25331084,148.7,148.63,14.25331084]
[1641478665780,14.25331084,148.7,148.63,14.25331084]
[1641478665981,18.25331084,148.7,148.63,14.25331084]
[1641478666180,14.25331084,148.69,148.62,41.91810084]
[1641478668784,16.04368176,148.71,148.62,41.91810084]
[1641478669287,16.04368176,148.71,148.62,14.25331084]
[1641478669690,14.25593523,148.69,148.62,14.25331084]
[1641478669989,14.25593523,148.69,148.62,41.91810084]
[1641478670288,27.66479,148.7,148.62,41.91810084]
[1641478670487,27.66479,148.7,148.62,48.87646522]
[1641478671386,14.25583073,148.69,148.62,41.91810084]
[1641478672088,27.66479,148.7,148.63,21.2116695]
[1641478672289,31.66479,148.7,148.63,21.2116695]
[1641478672492,27.66479,148.7,148.63,21.2116695]
[1641478672690,31.66479,148.7,148.63,21.2116695]
[1641478672889,14.25578791,148.69,148.63,21.2116695]
[1641478673690,4.0,148.69,148.63,21.2116695]
[1641478673892,4.0,148.67,148.63,21.2116695]
[1641478674292,4.0,148.66,148.63,14.25331084]
[1641478674493,4.0,148.66,148.65,4.7520915]
[1641478674693,4.0,148.66,148.62,14.25331084]
[1641478674891,4.0,148.65,148.62,14.25331084]
[1641478675093,10.72381913,148.66,148.62,14.25331084]
[1641478675292,6.72381913,148.66,148.62,14.25331084]
[1641478675493,10.72381913,148.66,148.6,14.25331084]
[1641478675894,4.0,148.65,148.6,14.25331084]
[1641478676093,31.66479,148.65,148.6,14.25331084]
[1641478676294,31.66479,148.65,148.59,21.21098324]
[1641478676693,4.0,148.63,148.59,21.21098324]
[1641478676894,31.66479,148.65,148.59,21.21098324]
[1641478677094,31.66479,148.65,148.59,14.25331084]
[1641478677295,41.9210645,148.65,148.58,79.93691084]
[1641478677495,45.9210645,148.65,148.58,79.93691084]
[1641478677697,41.9210645,148.65,148.58,79.93691084]
[1641478678095,27.66479,148.65,148.58,79.93691084]
[1641478679096,27.66479,148.65,148.59,21.21104179]
[1641478680200,14.25948212,148.66,148.59,48.87583179]
[1641478680598,14.25948212,148.67,148.6,14.25331084]
[1641478681600,6.72359309,148.67,148.62,14.25331084]
[1641478682200,10.72359309,148.67,148.62,14.25331084]
[1641478682402,4.0,148.64,148.62,14.25331084]
[1641478682602,4.0,148.65,148.6,21.21104179]
[1641478682804,4.0,148.66,148.6,21.21104179]
[1641478683102,20.98307521,148.67,148.6,21.21104179]
[1641478683301,24.98307521,148.67,148.6,21.21104179]
[1641478683501,14.25948212,148.66,148.59,21.21104179]
[1641478684303,20.98307521,148.67,148.6,14.25331084]
[1641478685108,6.72359309,148.67,148.61,14.25331084]
[1641478686008,6.72359309,148.67,148.62,14.25331084]
[1641478687509,6.72359309,148.67,148.61,14.25331084]
[1641478689311,27.66479,148.66,148.61,14.25331084]
[1641478689912,14.25948212,148.65,148.58,79.93691084]
[1641478691415,41.92427212,148.66,148.59,21.21104038]
[1641478692415,27.66479,148.66,148.58,69.6836]
[1641478693716,27.66479,148.66,148.58,65.6836]
[1641478694116,27.66479,148.66,148.57,41.91810084]
[1641478694317,31.66479,148.66,148.57,14.25331084]
[1641478694518,27.66479,148.66,148.57,14.25331084]
[1641478694718,96.34639,148.66,148.57,14.25331084]
[1641478695018,14.25948212,148.65,148.58,14.25331084]
[1641478695819,18.25948212,148.65,148.58,14.25331084]
[1641478696221,4.0,148.64,148.58,14.25331084]
[1641478696419,106.60587212,148.66,148.58,14.25331084]
[1641478696420,4.0,148.62,148.58,14.25331084]
[1641478696921,8.964,148.62,148.58,14.25331084]
[1641478697122,8.964,148.62,148.57,14.25331084]
[1641478697324,36.62879,148.62,148.57,14.25331084]
[1641478698426,6.72721157,148.59,148.57,14.25331084]
[1641478698725,5.6,148.59,148.56,14.25331084]
[1641478700527,5.6,148.59,148.54,14.25331084]
[1641478701127,6.72743786,148.58,148.54,14.25331084]
[1641478701328,6.72743786,148.58,148.51,65.66467265]
[1641478701528,6.72743786,148.58,148.51,27.66479]
[1641478704035,34.39064418,148.62,148.52,1.41290038]
[1641478704636,34.39064418,148.62,148.52,22.58633398]
[1641478705839,34.39064418,148.62,148.52,26.58633398]
[1641478706438,34.39064418,148.62,148.53,15.66621122]
[1641478706637,34.39064418,148.62,148.54,66.9739]
[1641478707338,34.39064418,148.62,148.55,1.41290038]
[1641478708238,38.39064418,148.62,148.55,1.41290038]
[1641478708439,34.39064418,148.62,148.55,1.41290038]
[1641478709242,34.39064418,148.62,148.54,66.9739]
[1641478709440,40.82164418,148.62,148.54,66.9739]
[1641478709843,40.82164418,148.62,148.54,70.9739]
[1641478710042,40.82164418,148.62,148.54,66.9739]
[1641478711746,40.82164418,148.62,148.55,27.66479]
[1641478711948,40.82164418,148.62,148.55,29.07782136]
[1641478712550,40.82164418,148.62,148.56,1.41303136]
[1641478720559,34.39064418,148.62,148.56,1.41303136]
[1641478720860,6.72585418,148.62,148.56,1.41303136]
[1641478722062,3.33274562,148.61,148.56,14.25331084]
[1641478722861,6.72585418,148.62,148.57,14.25331084]
[1641478723663,3.33262505,148.61,148.57,14.25331084]
[1641478723861,9.10662505,148.61,148.57,14.25331084]
[1641478724561,5.774,148.61,148.56,14.25331084]
[1641478725562,5.774,148.61,148.57,14.25331084]
[1641478726162,6.72585418,148.62,148.57,14.25331084]
[1641478726362,6.72585418,148.62,148.56,14.25331084]
[1641478727164,3.33278688,148.61,148.57,14.25331084]
[1641478727864,6.72585418,148.62,148.55,22.62412246]
[1641478729963,96.72649,148.64,148.55,26.62412246]
[1641478730171,96.72649,148.64,148.55,28.84912246]
[1641478730364,27.66479,148.64,148.57,27.66479]
[1641478730563,41.92427212,148.64,148.57,41.91810084]
[1641478731463,45.92427212,148.64,148.57,14.25331084]
[1641478731667,3.33238734,148.63,148.58,22.62412246]
[1641478732465,7.33238734,148.63,148.58,22.62412246]
[1641478732967,3.33238734,148.63,148.57,14.25331084]
[1641478734265,7.33238734,148.63,148.57,14.25331084]
[1641478734468,14.05778918,148.63,148.57,14.25331084]
[1641478734667,10.05778918,148.63,148.57,14.25331084]
[1641478735167,4.75381572,148.6,148.59,4.75381572]
[1641478735367,11.53781572,148.6,148.59,4.75381572]
[1641478736069,11.53781572,148.6,148.56,14.25331084]
[1641478736872,4.75381572,148.6,148.56,14.25331084]
[1641478737371,1.572e-05,148.6,148.57,4.0]
[1641478737573,1.572e-05,148.6,148.58,4.0]
[1641478737772,27.66479,148.64,148.59,14.25331084]
[1641478738173,48.64831731,148.66,148.59,14.25331084]
[1641478738372,20.98352731,148.66,148.59,14.25331084]
[1641478738573,20.98352731,148.66,148.59,41.91810084]
[1641478738773,3.33131629,148.65,148.6,14.25331084]
[1641478739574,6.72404519,148.66,148.6,14.25331084]
[1641478739777,20.98352731,148.66,148.6,1.41303136]
[1641478740376,3.33126701,148.65,148.6,1.41303136]
[1641478740777,7.33126701,148.65,148.6,1.41303136]
[1641478740977,6.72540184,148.63,148.6,1.41303136]
[1641478741477,10.72540184,148.63,148.6,1.41303136]
[1641478741879,10.72540184,148.63,148.54,68.4376]
[1641478741880,14.25833308,148.61,148.55,1.42094441]
[1641478743082,30.99806444,148.62,148.55,1.42094441]
[1641478743282,45.2605488,148.62,148.55,22.63291193]
[1641478744187,3.33327444,148.61,148.55,22.63291193]
[1641478744990,34.45579,148.62,148.56,14.25331084]
[1641478745990,34.45579,148.62,148.55,22.63291193]
[1641478745991,3.33318597,148.61,148.55,22.63291193]
[1641478746592,48.71827436,148.62,148.56,27.66479]
[1641478747394,3.33311194,148.61,148.57,1.42094441]
[1641478747994,48.71794547,148.62,148.56,27.66479]
[1641478749094,3.33326722,148.61,148.57,1.42094562]
[1641478749696,14.26326696,148.61,148.56,27.66479]
[1641478750795,14.26326696,148.61,148.57,1.42091508]
[1641478750796,3.33345042,148.61,148.57,1.42091508]
[1641478751095,6.72675905,148.6,148.57,1.42091508]
[1641478751395,10.72675905,148.6,148.57,1.42091508]
[1641478751596,17.59864527,148.59,148.52,22.6328765]
[1641478751795,24.33164527,148.59,148.52,22.6328765]
[1641478752499,6.733,148.59,148.52,22.6328765]
[1641478752700,3.33437741,148.58,148.52,22.6328765]
[1641478753499,52.66331252,148.59,148.52,14.25331084]
[1641478754600,17.60025974,148.58,148.51,14.25331084]
[1641478758201,14.26552252,148.57,148.5,22.6328765]
[1641478758802,15.39801647,148.58,148.5,22.6328765]
[1641478759603,14.26650278,148.57,148.5,22.6328765]
[1641478760504,15.39801647,148.58,148.5,22.6328765]
[1641478760505,17.60115575,148.58,148.51,14.25331084]
[1641478761206,21.60115575,148.58,148.51,14.25331084]
[1641478761603,6.72856951,148.56,148.51,14.25331084]
[1641478761903,12.88556951,148.56,148.51,14.25331084]
[1641478762103,31.15198804,148.56,148.5,1.42081516]
[1641478763107,31.15198804,148.56,148.48,41.91810084]
[1641478763309,4.0,148.54,148.49,1.42040141]
[1641478764109,3.33473722,148.53,148.48,41.91810084]
[1641478764308,8.75373722,148.53,148.48,41.91810084]
[1641478765210,3.33665192,148.52,148.49,1.4203815]
[1641478765911,5.419,148.53,148.48,41.91810084]
[1641478767016,3.33666513,148.52,148.49,1.4203793]
[1641478767714,5.419,148.53,148.48,41.91810084]
[1641478768316,9.419,148.53,148.48,14.25331084]
[1641478768515,4.0,148.51,148.49,1.42038377]
[1641478768717,3.3366383,148.52,148.49,1.42038377]
[1641478768917,7.3366383,148.52,148.49,1.42038377]
[1641478769119,4.0,148.51,148.49,1.42038377]
[1641478769319,4.0,148.51,148.48,5.47731084]
[1641478769521,4.0,148.5,148.48,1.42026106]
[1641478769719,27.66479,148.49,148.48,1.42026106]
[1641478769920,31.66479,148.49,148.45,5.47731084]
[1641478770421,4.0,148.48,148.45,5.47731084]
[1641478770620,4.0,148.48,148.42,37.99988265]
[1641478770822,4.0,148.48,148.41,6.95729284]
[1641478771023,25.54915313,148.49,148.44,4.0]
[1641478771221,25.54915313,148.49,148.46,4.0]
[1641478771721,34.39517094,148.52,148.46,4.0]
[1641478772122,34.39517094,148.52,148.42,27.66479]
[1641478772323,41.47317094,148.52,148.42,27.66479]
[1641478772522,41.47317094,148.52,148.43,6.95729284]
[1641478773026,41.47317094,148.52,148.46,4.0]
[1641478773627,41.47317094,148.52,148.44,73.0652]
[1641478774027,41.47317094,148.52,148.45,6.95729284]
[1641478774928,12.07585794,148.51,148.45,4.0]
[1641478775329,12.07585794,148.51,148.46,4.0]
[1641478775530,12.07585794,148.51,148.41,69.1929]
[1641478775729,12.07585794,148.51,148.45,4.0]
[1641478776031,12.07585794,148.51,148.42,34.62297494]
[1641478776229,12.07585794,148.51,148.47,4.0]
[1641478776429,34.39517094,148.52,148.47,4.0]
[1641478776629,34.39517094,148.52,148.43,6.95818494]
[1641478776829,34.39517094,148.52,148.46,4.0]
[1641478777029,34.39517094,148.52,148.43,6.95818494]
[1641478777230,39.98017094,148.52,148.43,6.95818494]
[1641478777630,39.98017094,148.52,148.45,4.0]
[1641478777837,39.98017094,148.52,148.44,4.0]
[1641478778232,39.98017094,148.52,148.45,4.0]
[1641478781138,12.07725643,148.51,148.45,4.0]
[1641478781336,12.07725643,148.51,148.44,4.0]
[1641478781534,12.07725643,148.51,148.42,6.95818494]
[1641478782335,12.07725643,148.51,148.44,4.0]
[1641478782835,62.05996094,148.52,148.44,4.0]
[1641478783539,62.05996094,148.52,148.42,10.95818494]
[1641478783839,12.07768879,148.51,148.42,10.95818494]
[1641478784537,62.05996094,148.52,148.47,4.0]
[1641478788148,62.05996094,148.52,148.49,4.0]
[1641478788346,37.99988265,148.55,148.49,7.261]
[1641478788746,37.99988265,148.55,148.53,4.0]
[1641478788949,37.99988265,148.55,148.5,65.7215]
[1641478789146,37.99988265,148.55,148.53,4.0]
[1641478789347,37.99988265,148.55,148.5,65.7215]
[1641478790148,27.66479,148.55,148.46,6.94377653]
[1641478790349,6.72992799,148.53,148.46,6.94377653]
[1641478790548,6.73174015,148.49,148.46,6.94377653]
[1641478790750,13.40574015,148.49,148.46,6.94377653]
[1641478791249,13.40574015,148.49,148.44,4.0]
[1641478792049,27.66479,148.45,148.44,4.0]
[1641478795353,27.66479,148.47,148.44,4.0]
[1641478796855,27.66479,148.47,148.41,6.95632938]
[1641478797857,27.66479,148.47,148.44,4.0]
[1641478798259,4.7587682,148.46,148.45,4.7587682]
[1641478798458,10.1857682,148.46,148.45,4.7587682]
[1641478799658,4.7587682,148.46,148.45,8.7587682]
[1641478799862,27.66479,148.47,148.45,8.7587682]
[1641478800359,27.66479,148.47,148.45,4.7587682]
[1641478801560,27.66479,148.47,148.44,8.7587682]
[1641478802460,27.66479,148.47,148.45,4.7587682]
[1641478803761,27.66479,148.47,148.45,8.7587682]
[1641478804163,27.66479,148.47,148.45,4.7587682]